bitfinex/quotes_SOLUSD_20241213
["timestamp","ask_amount","ask_price","bid_price","bid_amount"]
[1734103448645,13.00529749,225.28,225.21,13.00529749]
[1734103449009,13.00529749,225.28,225.2,13.00529749]
[1734103449219,13.00529749,225.26,225.19,13.00529749]
[1734103449433,13.00529749,225.27,225.2,13.00529749]
[1734103449632,13.00529749,225.33,225.25,13.00529749]
[1734103449821,13.00529749,225.33,225.17,13.00529749]
[1734103449822,1.5574,225.34,225.28,13.00529749]
[1734103450012,14.56269749,225.34,225.22,0.12549]
[1734103450214,14.56269749,225.34,225.27,13.00529749]
[1734103452142,24.09769749,225.38,225.3,13.00529749]
[1734103452336,13.00529749,225.37,225.3,13.00529749]
[1734103452646,13.00529749,225.35,225.28,13.00529749]
[1734103453510,13.00529749,225.34,225.27,13.00529749]
[1734103453735,13.00529749,225.33,225.26,13.00529749]
[1734103453933,13.00529749,225.32,225.25,13.00529749]
[1734103454242,13.00529749,225.31,225.24,13.00529749]
[1734103454720,13.00529749,225.31,225.23,13.00529749]
[1734103455908,13.00529749,225.28,225.2,13.00529749]
[1734103456111,13.00529749,225.28,225.21,13.00529749]
[1734103456336,13.00529749,225.29,225.22,13.00529749]
[1734103456936,14.66799749,225.3,225.23,13.00529749]
[1734103457315,1.6627,225.3,225.24,13.00529749]
[1734103457629,1.6627,225.3,225.25,13.00529749]
[1734103458249,14.66799749,225.3,225.17,11.1022]
[1734103458415,13.00529749,225.29,225.22,13.00529749]
[1734103458615,13.00529749,225.28,225.21,13.00529749]
[1734103458834,13.00529749,225.29,225.22,13.00529749]
[1734103459036,1.6627,225.3,225.24,13.00529749]
[1734103459337,1.6627,225.3,225.25,13.00529749]
[1734103460654,1.6627,225.3,225.24,13.00529749]
[1734103462955,20.0,225.34,225.27,13.00529749]
[1734103463246,20.0,225.34,225.28,13.00529749]
[1734103463415,20.0,225.34,225.25,13.00529749]
[1734103463416,13.00529749,225.32,225.25,13.00529749]
[1734103463818,13.00529749,225.32,225.24,13.00529749]
[1734103464092,13.00529749,225.31,225.24,13.00529749]
[1734103464853,20.0,225.34,225.28,13.00529749]
[1734103465037,13.00529749,225.37,225.3,13.00529749]
[1734103465243,19.0222,225.39,225.33,13.00529749]
[1734103465244,7.9299,225.39,225.33,13.00529749]
[1734103465444,13.00529749,225.42,225.35,13.00529749]
[1734103465630,13.00529749,225.41,225.34,13.00529749]
[1734103466251,13.00529749,225.42,225.35,13.00529749]
[1734103466619,13.00529749,225.41,225.34,13.00529749]
[1734103466821,13.00529749,225.37,225.27,0.12549]
[1734103467022,13.00529749,225.36,225.29,13.00529749]
[1734103467241,13.00529749,225.37,225.3,13.00529749]
[1734103467627,13.00529749,225.37,225.26,0.12549]
[1734103467628,13.00529749,225.36,225.29,13.00529749]
[1734103467834,23.902374,225.42,225.25,13.00529749]
[1734103467835,13.00529749,225.32,225.25,13.00529749]
[1734103468042,13.00529749,225.31,225.24,13.00529749]
[1734103470255,13.00529749,225.32,225.25,13.00529749]
[1734103471539,13.00529749,225.31,225.24,13.00529749]
[1734103472456,13.00529749,225.3,225.23,13.00529749]
[1734103472769,13.00529749,225.32,225.25,13.00529749]
[1734103474071,13.00529749,225.33,225.26,13.00529749]
[1734103474254,1.5219,225.35,225.29,13.00529749]
[1734103474444,13.00529749,225.38,225.32,13.00529749]
[1734103474763,13.00529749,225.39,225.32,13.00529749]
[1734103476165,1.6296,225.4,225.35,13.00529749]
[1734103476755,1.6296,225.4,225.29,0.66555618]
[1734103476756,13.00529749,225.43,225.36,13.00529749]
[1734103477070,13.00529749,225.43,225.3,0.12549]
[1734103477071,13.00529749,225.42,225.35,13.00529749]
[1734103477253,13.00529749,225.41,225.33,13.00529749]
[1734103477454,13.00529749,225.39,225.32,13.00529749]
[1734103478968,13.00529749,225.37,225.29,13.00529749]
[1734103479166,13.00529749,225.33,225.26,13.00529749]
[1734103480162,13.00529749,225.34,225.27,13.00529749]
[1734103480873,13.00529749,225.33,225.26,13.00529749]
[1734103481580,13.00529749,225.32,225.25,13.00529749]
[1734103482466,11.83434445,225.32,225.25,13.00529749]
[1734103482672,13.00529749,225.34,225.27,13.00529749]
[1734103482882,13.00529749,225.33,225.26,13.00529749]
[1734103484686,13.00529749,225.33,225.07,6.8183593]
[1734103484687,20.0,225.24,225.07,6.8183593]
[1734103484890,13.00529749,225.2,225.12,13.00529749]
[1734103485186,13.00529749,225.22,225.15,13.00529749]
[1734103485391,20.0,225.24,225.18,13.00529749]
[1734103485777,7.2937621,225.28,225.19,13.00529749]
[1734103485778,13.00529749,225.27,225.19,13.00529749]
[1734103486626,13.00529749,225.26,225.19,13.00529749]
[1734103486971,13.00529749,225.25,225.18,13.00529749]
[1734103490378,13.00529749,225.24,225.17,13.00529749]
[1734103491678,13.00529749,225.25,225.18,13.00529749]
[1734103492572,13.00529749,225.24,225.17,13.00529749]
[1734103493578,13.00529749,225.23,225.16,13.00529749]
[1734103493888,13.00529749,225.2,225.13,13.00529749]
[1734103494479,13.00529749,225.21,225.14,13.00529749]
[1734103495380,13.00529749,225.22,225.15,13.00529749]
[1734103495708,11.0979,225.27,225.13,0.12549]
[1734103495709,13.00529749,225.25,225.18,13.00529749]
[1734103498809,13.00529749,225.24,225.17,13.00529749]
[1734103500212,13.00529749,225.28,225.21,13.00529749]
[1734103500726,13.00529749,225.29,225.22,13.00529749]
[1734103501016,13.00529749,225.28,225.22,13.00529749]
[1734103501212,13.00529749,225.28,225.21,13.00529749]
[1734103503421,13.00529749,225.27,225.2,13.00529749]
[1734103503582,13.00529749,225.26,225.19,13.00529749]
[1734103503782,13.00529749,225.23,225.16,13.00529749]
[1734103503987,13.00529749,225.22,225.15,13.00529749]
[1734103504919,13.00529749,225.21,225.14,13.00529749]
[1734103506418,13.00529749,225.21,225.13,13.00529749]
[1734103506780,13.00529749,225.2,225.13,13.00529749]
[1734103507297,13.00529749,225.17,225.1,13.00529749]
[1734103507607,13.00529749,225.16,225.09,13.00529749]
[1734103508207,13.00529749,225.18,225.11,13.00529749]
[1734103508394,13.00529749,225.17,225.1,13.00529749]
[1734103508590,13.00529749,225.16,225.1,13.00529749]
[1734103509220,13.00529749,225.16,225.09,13.00529749]
[1734103510107,13.00529749,225.16,225.07,6.5486]
[1734103510108,13.00529749,225.17,225.1,13.00529749]
[1734103511007,13.00529749,225.16,225.1,13.00529749]
[1734103512592,11.1012,225.2,225.1,13.00529749]
[1734103512593,13.00529749,225.17,225.1,13.00529749]
[1734103512790,13.00529749,225.19,225.12,13.00529749]
[1734103513097,13.00529749,225.2,225.13,13.00529749]
[1734103513404,13.00529749,225.23,225.16,13.00529749]
[1734103515314,13.00529749,225.23,225.17,13.00529749]
[1734103515698,13.00529749,225.24,225.17,13.00529749]
[1734103515998,13.00529749,225.25,225.18,13.00529749]
[1734103516209,11.0977,225.28,225.14,20.0]
[1734103516210,13.00529749,225.23,225.14,20.0]
[1734103516397,13.00529749,225.23,225.16,13.00529749]
[1734103517311,13.00529749,225.24,225.17,13.00529749]
[1734103517496,13.00529749,225.23,225.16,13.00529749]
[1734103518190,13.00529749,225.23,225.09,1.77022267]
[1734103518191,13.00529749,225.19,225.12,13.00529749]
[1734103518390,13.00529749,225.18,225.11,13.00529749]
[1734103518595,13.00529749,225.18,225.12,13.00529749]
[1734103518796,13.00529749,225.16,225.1,13.00529749]
[1734103520321,13.00529749,225.17,225.1,13.00529749]
[1734103520504,13.00529749,225.18,225.12,13.00529749]
[1734103520702,13.00529749,225.2,225.13,13.00529749]
[1734103521302,13.00529749,225.19,225.12,13.00529749]
[1734103521514,13.00529749,225.18,225.11,13.00529749]
[1734103521706,13.00529749,225.17,225.1,13.00529749]
[1734103521907,13.00529749,225.18,225.11,13.00529749]
[1734103522320,13.00529749,225.17,225.1,13.00529749]
[1734103522520,13.00529749,225.18,225.11,13.00529749]
[1734103522909,13.00529749,225.18,225.12,13.00529749]
[1734103523723,13.00529749,225.15,225.09,13.00529749]
[1734103524326,13.00529749,225.14,225.07,19.55389749]
[1734103525329,13.00529749,225.11,225.04,13.00529749]
[1734103525535,13.00529749,225.08,225.01,1.6409]
[1734103525728,23.902374,225.16,225.01,1.6409]
[1734103525729,13.00529749,225.07,225.01,1.6409]
[1734103526708,13.00529749,225.08,225.01,14.64619749]
[1734103526904,13.00529749,225.07,225.01,1.6409]
[1734103527225,0.12549,225.16,224.97,20.14244779]
[1734103527226,13.00529749,225.03,224.97,20.14244779]
[1734103527433,13.00529749,225.07,225.01,13.00529749]
[1734103527607,6.46766992,225.1,225.01,13.00529749]
[1734103527809,20.0,225.09,225.01,13.00529749]
[1734103528130,12.7068,225.18,225.03,0.12549]
[1734103528498,12.7068,225.18,225.05,0.12549]
[1734103528499,1.6042,225.18,225.05,0.12549]
[1734103528717,11.1006,225.22,225.06,8.53450446]
[1734103528906,11.1006,225.22,225.07,0.25098]
[1734103529229,13.00529749,225.21,225.14,13.00529749]
[1734103529428,13.00529749,225.2,225.13,13.00529749]
[1734103529804,13.00529749,225.19,225.12,13.00529749]
[1734103530102,13.00529749,225.18,225.11,13.00529749]
[1734103530301,13.00529749,225.15,225.08,13.00529749]
[1734103530497,13.00529749,225.14,225.06,7.8682]
[1734103530738,13.00529749,225.12,225.06,20.87349749]
[1734103531102,33.49651381,225.23,225.06,1.5848]
[1734103531103,13.00529749,225.11,225.06,1.5848]
[1734103531408,13.00529749,225.11,225.04,13.00529749]
[1734103531409,13.00529749,225.09,225.03,13.00529749]
[1734103531806,13.00529749,225.1,225.03,13.00529749]
[1734103532218,13.00529749,225.11,225.04,13.00529749]
[1734103532620,13.00529749,225.11,225.05,13.00529749]
[1734103532811,13.00529749,225.11,225.04,13.00529749]
[1734103534233,13.00529749,225.12,225.05,13.00529749]
[1734103534442,13.00529749,225.12,225.04,13.00529749]
[1734103534734,13.00529749,225.11,225.04,13.00529749]
[1734103535503,61.4207344,225.23,225.04,13.00529749]
[1734103535702,42.8371524,225.93,225.04,13.00529749]
[1734103535934,86.8896029,225.83,225.49,1.4649]
[1734103536236,2.72011117,226.1,225.97,14.99998998]
[1734103536433,13.00529749,226.15,225.97,92.48028888]
[1734103536637,1.79845006,226.16,226.01,15.0]
[1734103536803,13.00529749,226.25,226.11,13.00529749]
[1734103537006,7.86097109,226.39,226.12,49.72282313]
[1734103537303,2.65902088,226.24,226.17,33.53928652]
[1734103537531,33.53928652,226.33,226.2,33.53928652]
[1734103537736,33.53928652,226.33,226.21,68.70340488]
[1734103537917,36.25567915,226.31,226.22,20.33823829]
[1734103538232,36.25567915,226.31,226.23,156.94816016]
[1734103538233,33.53928652,226.31,226.23,156.94816016]
[1734103538422,33.53928652,226.31,226.24,23.2252536]
[1734103538626,33.53928652,226.26,226.25,4.20919706]
[1734103538827,48.33735897,226.26,226.25,60.61490526]
[1734103539041,48.33735897,226.26,226.25,92.6007845]
[1734103539248,14.79807245,226.26,226.25,92.6007845]
[1734103539416,20.22621348,226.26,226.25,92.6007845]
[1734103539620,33.53928652,226.28,226.25,92.6007845]
[1734103539831,33.53928652,226.26,226.25,92.6007845]
[1734103540643,33.53928652,226.27,226.25,200.91423192]
[1734103540817,67.07857304,226.27,226.26,31.98587924]
[1734103541016,33.53928652,226.27,226.26,69.00327114]
[1734103543025,22.0844,226.41,226.26,120.30964097]
[1734103543226,33.53928652,226.27,226.26,51.30636983]
[1734103543446,33.53928652,226.27,226.26,126.22742528]
[1734103543629,43.94460404,226.27,226.26,126.22742528]
[1734103544039,43.94460404,226.27,226.25,57.00707759]
[1734103544040,23.902374,226.26,226.25,32.09121001]
[1734103544249,0.12549,226.21,226.08,15.0]
[1734103544556,33.49522327,226.1,226.02,15.0]
[1734103544743,33.49522327,226.08,226.02,15.0]
[1734103544922,10.78388397,226.08,226.02,15.0]
[1734103545116,33.49522327,226.09,226.0,48.49522327]
[1734103545742,33.49522327,226.09,226.02,15.0]
[1734103545949,11.0554,226.14,226.0,48.49522327]
[1734103546130,33.49522327,226.14,226.06,33.49522327]
[1734103546342,33.49522327,226.18,226.1,33.49522327]
[1734103546544,33.49522327,226.16,226.07,33.49522327]
[1734103546848,33.49522327,226.16,226.08,45.80786057]
[1734103547155,0.12549,226.15,226.08,45.80786057]
[1734103547342,33.49522327,226.14,226.08,45.80786057]
[1734103547523,20.0,226.11,226.08,45.80786057]
[1734103547718,20.0,226.11,226.09,45.80786057]
[1734103548434,20.0,226.12,226.09,45.80786057]
[1734103548833,20.0,226.12,226.1,45.80786057]
[1734103549018,33.49522327,226.19,226.1,45.80786057]
[1734103549223,33.49522327,226.13,226.1,43.54086057]
[1734103549428,33.49522327,226.13,226.1,25.89196057]
[1734103549629,33.49522327,226.11,226.1,17.82256057]
[1734103549923,33.49522327,226.11,226.1,6.057e-05]
[1734103550123,33.49522327,226.11,226.1,42.31231407]
[1734103550439,33.49522327,226.11,226.1,24.59541407]
[1734103550440,46.81522327,226.11,226.1,24.59541407]
[1734103550651,46.81522327,226.11,226.1,1.407e-05]
[1734103550823,13.32,226.11,226.1,5.0855856]
[1734103551028,46.81522327,226.11,226.1,51.37401752]
[1734103551341,104.08733054,226.11,226.1,14.82832517]
[1734103551528,20.0,226.15,225.87,22.85663258]
[1734103551729,23.12152815,226.14,225.88,15.92954761]
[1734103552056,20.0,226.01,225.98,33.49522327]
[1734103552230,33.49522327,226.06,225.97,33.49522327]
[1734103553027,33.49522327,226.04,225.95,33.49522327]
[1734103553454,13.32,226.08,225.84,14.99998998]
[1734103553455,33.49522327,226.02,225.84,14.99998998]
[1734103553653,33.49522327,226.02,225.94,33.49522327]
[1734103554031,11.0604,226.03,225.96,33.49522327]
[1734103554225,20.0,226.0,225.96,33.49522327]
[1734103554426,20.0,226.0,225.94,33.49522327]
[1734103554630,20.0,226.0,225.98,33.49522327]
[1734103555446,20.0,226.0,225.96,33.49522327]
[1734103555634,11.0604,226.03,225.94,33.49522327]
[1734103555635,20.0,225.99,225.94,33.49522327]
[1734103556035,31.0628,225.99,225.94,33.49522327]
[1734103556847,31.0628,225.99,224.69,25.88443507]
[1734103557069,31.0628,225.99,196.73,0.1127551]
[1734103557070,45.0,225.4,225.25,33.49522327]
[1734103557364,2.31338738,225.68,225.28,30.0]
[1734103557365,15.0,225.34,225.28,30.0]
[1734103557543,15.0,225.31,225.28,30.0]
[1734103557744,92.90780218,225.3,225.13,0.66614488]
[1734103557956,15.0,225.27,225.1,0.602042]
[1734103558278,70.36522628,225.29,225.19,2.63060062]
[1734103558279,104.52127746,225.26,225.19,2.63060062]
[1734103558570,95.91357747,225.25,225.2,0.66573565]
[1734103558761,29.04950793,225.25,225.2,0.66573565]
[1734103558961,29.04950793,225.25,225.2,0.62573565]
[1734103559363,15.0,225.35,225.2,0.62573565]
[1734103559562,15.0,225.35,225.21,0.12549]
[1734103559757,0.72437465,225.36,225.21,0.12549]
[1734103560071,33.49522327,225.35,225.24,33.49522327]
[1734103561567,33.49522327,225.44,225.39,23.902374]
[1734103561766,33.49522327,225.44,225.41,23.776884]
[1734103562086,0.72437465,225.5,225.43,23.776884]
[1734103562263,15.0,225.56,225.49,23.776884]
[1734103562581,15.0,225.52,225.51,23.776884]
[1734103562782,15.0,225.6,225.51,23.776884]
[1734103562972,6.34763087,225.57,225.54,22.81873622]
[1734103563158,11.0776,225.68,225.56,91.27071379]
[1734103563356,33.49522327,225.57,225.56,91.27071379]
[1734103563658,33.49522327,225.57,225.56,218.51858082]
[1734103563863,33.49522327,225.57,225.56,154.51852942]
[1734103564073,33.49522327,225.57,225.56,99.15707716]
[1734103564780,33.49522327,225.57,225.56,78.2431313]
[1734103565078,33.49522327,225.57,225.56,102.0200153]
[1734103565576,10.21293462,225.69,225.56,102.0200153]
[1734103565577,7.502,225.69,225.57,23.776884]
[1734103569065,7.502,225.69,225.48,130.39874097]
[1734103569569,20.0,225.66,225.48,130.39874097]
[1734103570179,20.0,225.64,225.48,130.39874097]
[1734103570380,30.0,225.57,225.48,130.39874097]
[1734103572269,30.0,225.57,225.49,23.776884]
[1734103574698,41.0834,225.57,225.48,130.39874097]
[1734103574906,41.0834,225.57,225.38,23.864243]
[1734103575485,20.0,225.54,225.38,23.864243]
[1734103576086,30.0,225.52,225.35,2.6466767]
[1734103576279,20.0,225.49,225.38,17.750772]
[1734103576483,20.0,225.48,225.3,130.39339674]
[1734103576668,30.0,225.52,225.3,130.39339674]
[1734103576669,20.0,225.46,225.3,130.39339674]
[1734103577097,11.0899,225.43,225.3,130.39339674]
[1734103577464,30.0,225.44,225.3,130.39339674]
[1734103578098,30.0,225.42,225.3,130.39339674]
[1734103578301,20.0,225.41,225.3,130.39339674]
[1734103579370,11.0895,225.44,225.3,130.39339674]
[1734103579571,17.655581,225.9,225.68,15.0]
[1734103579795,1.42593496,225.93,225.68,48.67465431]
[1734103579997,2.6623469,225.86,225.64,15.0]
[1734103580370,2.6623469,225.86,225.6,15.0]
[1734103580602,2.6623469,225.86,225.62,15.0]
[1734103580777,2.6623469,225.86,225.62,30.0]
[1734103580966,11.073,225.78,225.64,15.0]
[1734103581172,11.073,225.78,225.65,15.0]
[1734103581387,11.073,225.78,225.65,23.776884]
[1734103581708,15.8251,225.74,225.6,23.776884]
[1734103582410,20.0,225.66,225.6,23.776884]
[1734103583102,0.20820486,225.6,225.52,15.0]
[1734103583397,0.20820486,225.6,225.53,15.0]
[1734103583590,0.20820486,225.6,225.53,30.0]
[1734103583793,0.20820486,225.6,225.55,15.0]
[1734103584376,0.20820486,225.6,225.52,15.0]
[1734103584609,20.0,225.57,225.5,15.0]
[1734103584792,20.0,225.57,225.5,30.0]
[1734103585470,0.20820486,225.6,225.53,15.0]
[1734103585674,0.20820486,225.6,225.53,30.0]
[1734103586308,0.20820486,225.6,225.53,38.776884]
[1734103586515,0.20820486,225.6,225.5,15.0]
[1734103586684,11.082,225.59,225.48,23.776884]
[1734103586883,20.0,225.56,225.45,30.0]
[1734103587384,20.0,225.56,225.47,15.0]
[1734103587589,11.082,225.59,225.41,17.748283]
[1734103587590,20.0,225.52,225.43,15.0]
[1734103588098,20.0,225.52,225.44,15.0]
[1734103588292,20.0,225.52,225.43,15.0]
[1734103588991,20.0,225.52,225.42,15.0]
[1734103588992,31.0859,225.52,225.42,15.0]
[1734103589697,31.0859,225.52,225.35,57.92985731]
[1734103589698,9.8364,225.51,225.35,17.751303]
[1734103589911,8.11391252,225.4,225.21,33.67465431]
[1734103590082,20.0,225.48,225.26,33.67465431]
[1734103590283,20.0,225.45,225.26,33.67465431]
[1734103590500,15.0,225.4,225.18,33.67465431]
[1734103590813,20.0,225.35,225.16,33.67465431]
[1734103591009,11.0943,225.34,225.16,33.67465431]
[1734103591217,20.0,225.31,225.16,33.67465431]
[1734103591385,20.0,225.31,225.13,33.67465431]
[1734103591785,20.0,225.31,225.12,8.88883314]
[1734103592491,20.0,225.31,225.13,33.67465431]
[1734103592912,11.0963,225.3,225.13,33.67465431]
[1734103593211,20.0,225.27,225.13,23.776884]
[1734103594628,20.0,225.27,225.13,57.45153831]
[1734103594918,20.0,225.23,225.1,0.602042]
[1734103596503,20.0,225.19,225.1,0.602042]
[1734103596929,20.0,225.19,225.11,23.776884]
[1734103598437,20.0,225.19,225.1,0.602042]
[1734103599641,20.0,225.19,225.11,23.776884]
[1734103600113,20.0,225.2,225.1,0.602042]
[1734103600528,20.0,225.19,225.1,4.2e-05]
[1734103600949,20.0,225.16,225.1,4.2e-05]
[1734103601236,35.0,225.16,225.1,4.2e-05]
[1734103601746,20.0,225.15,225.1,4.2e-05]
[1734103601947,20.0,225.16,225.1,4.2e-05]
[1734103602237,88.276168,225.24,225.1,4.2e-05]
[1734103602238,20.0,225.12,225.1,4.2e-05]
[1734103605617,11.1037,225.15,225.1,4.2e-05]
[1734103605826,0.16221828,225.14,225.1,4.2e-05]
[1734103606045,0.24412158,225.14,225.1,4.2e-05]
[1734103608048,0.24412158,225.14,225.05,33.67465431]
[1734103608049,0.24412158,225.14,225.09,0.0949151]
[1734103612160,0.24412158,225.14,225.11,33.67465431]
[1734103612441,0.24412158,225.14,225.13,23.776884]
[1734103613045,0.24412158,225.14,225.12,23.776884]
[1734103613655,0.24412158,225.14,225.11,23.776884]
[1734103613956,0.24412158,225.14,225.11,57.45153831]
[1734103614295,0.24412158,225.14,225.11,23.776884]
[1734103614442,0.24412158,225.14,225.1,23.902374]
[1734103614615,0.24412158,225.14,225.09,0.0949151]
[1734103617631,30.24412158,225.14,225.09,0.0949151]
[1734103618631,11.1046,225.13,225.09,0.0949151]
[1734103618946,30.24412158,225.12,225.09,0.0949151]
[1734103621158,0.24412158,225.12,225.09,0.0949151]
[1734103625223,30.24412158,225.12,225.09,0.0949151]
[1734103625529,11.1056,225.11,225.09,0.0949151]
[1734103626267,30.0,225.1,225.09,0.0949151]
[1734103627341,30.0,225.1,225.09,1.51e-05]
[1734103629141,20.0,225.06,224.89,33.67465431]
[1734103629446,30.0,225.04,224.88,33.67465431]
[1734103629654,20.0,225.01,224.86,0.5369261]
[1734103629848,0.24412158,225.0,224.87,33.67465431]
[1734103630045,0.24412158,225.0,224.86,0.5369261]
[1734103630046,0.24412158,225.0,224.89,33.67465431]
[1734103630366,30.0,224.99,224.87,33.67465431]
[1734103630539,30.0,224.99,224.86,0.5369261]
[1734103630540,0.24412158,224.98,224.86,0.5369261]
[1734103630946,0.24412158,224.98,224.86,34.21158041]
[1734103631168,0.24412158,224.98,224.87,33.67465431]
[1734103631468,30.24412158,224.98,224.88,33.67465431]
[1734103632462,41.35642158,224.98,224.86,0.5369261]
[1734103634151,41.35642158,224.98,224.87,23.776884]
[1734103634551,41.35642158,224.98,224.86,24.3138101]
[1734103635462,41.35642158,224.98,224.86,0.5369261]
[1734103636272,20.0,224.95,224.86,0.5369261]
[1734103636448,30.0,224.93,224.86,0.5369261]
[1734103636805,0.24412158,224.92,224.86,0.5369261]
[1734103638856,11.1155,224.91,224.86,0.5369261]
[1734103639050,0.24412158,224.9,224.86,0.5369261]
[1734103640547,20.0,224.87,224.86,0.5369261]
[1734103641459,50.0,224.87,224.86,0.5369261]
[1734103642081,50.0,224.87,224.86,2.61e-05]
[1734103642653,20.0,224.83,224.61,11.1302]
[1734103642898,20.24412158,224.82,224.65,20.85432975]
[1734103643055,20.24412158,224.82,224.66,20.85432975]
[1734103643388,20.24412158,224.82,224.68,20.85432975]
[1734103643683,20.0,224.8,224.7,20.85432975]
[1734103643983,0.24412158,224.79,224.71,23.776884]
[1734103644148,0.24412158,224.79,224.72,20.85432975]
[1734103644349,0.24412158,224.79,224.73,44.63121375]
[1734103644557,0.24412158,224.79,224.73,23.776884]
[1734103644763,0.24412158,224.79,224.68,20.85432975]
[1734103645063,20.0,224.78,224.64,21.39125585]
[1734103645262,0.24412158,224.77,224.64,0.5369261]
[1734103645681,11.1229,224.76,224.64,0.5369261]
[1734103645888,0.16221828,224.75,224.64,0.5369261]
[1734103646058,0.24412158,224.75,224.64,0.5369261]
[1734103647773,20.0,224.73,224.64,0.5369261]
[1734103647964,0.24412158,224.72,224.64,0.5369261]
[1734103648167,0.24412158,224.72,224.64,21.39125585]
[1734103648590,0.24412158,224.72,224.65,23.776884]
[1734103648770,0.24412158,224.72,224.64,0.5369261]
[1734103650194,20.24412158,224.72,224.64,0.5369261]
[1734103650803,20.0,224.68,224.64,0.5369261]
[1734103651012,0.24412158,224.67,224.64,0.5369261]
[1734103655062,0.24412158,224.67,224.66,20.85432975]
[1734103655796,0.24412158,224.67,224.64,0.5369261]
[1734103658304,0.24412158,224.67,224.66,20.85432975]
[1734103658609,0.24412158,224.67,224.66,44.75670375]
[1734103658774,0.24412158,224.67,224.66,44.63121375]
[1734103658970,0.24412158,224.67,224.66,44.88219375]
[1734103659189,12.3545,224.9,224.7,0.12549]
[1734103659399,12.3545,224.9,224.78,20.85432975]
[1734103659400,23.471,224.9,224.78,20.85432975]
[1734103659789,23.471,224.9,224.77,20.85432975]
[1734103659996,26.16840396,224.9,224.76,20.85432975]
[1734103660510,20.0,224.87,224.76,20.85432975]
[1734103660872,20.0,224.87,224.7,35.028274]
[1734103660873,20.0,224.87,224.75,20.85432975]
[1734103661597,20.0,224.87,224.79,20.85432975]
[1734103661808,11.1144,224.94,224.79,20.85432975]
[1734103661972,22.9779,224.98,224.83,44.63121375]
[1734103662371,2.652164,224.97,224.8,20.85432975]
[1734103662595,2.652164,224.97,224.81,23.776884]
[1734103662797,2.652164,224.97,224.74,20.85432975]
[1734103662979,2.652164,224.97,224.76,20.85432975]
[1734103663200,20.0,224.95,224.76,20.85432975]
[1734103663400,20.0,224.94,224.76,20.85432975]
[1734103663599,20.0,224.9,224.75,20.85432975]
[1734103664215,20.0,224.9,224.72,20.85432975]
[1734103664216,11.1165,224.89,224.72,20.85432975]
[1734103664404,20.0,224.86,224.72,20.85432975]
[1734103665405,20.0,224.86,224.71,20.0]
[1734103665919,20.0,224.86,224.71,40.85432975]
[1734103666416,20.0,224.82,224.71,20.85432975]
[1734103666620,20.0,224.82,224.69,20.85432975]
[1734103666995,20.0,224.82,224.71,20.85432975]
[1734103667300,20.0,224.86,224.77,20.85432975]
[1734103667600,11.1168,224.89,224.78,20.85432975]
[1734103668209,11.1147,224.93,224.8,20.85432975]
[1734103669833,20.0,224.9,224.8,20.85432975]
[1734103670017,20.0,224.9,224.81,20.85432975]
[1734103670529,11.1128,224.97,224.85,20.85432975]
[1734103670704,11.1128,224.97,224.83,20.85432975]
[1734103670908,11.1128,224.97,224.81,20.85432975]
[1734103671340,11.1128,224.97,224.86,20.85432975]
[1734103672626,11.1128,224.97,224.87,20.85432975]
[1734103672829,11.1128,224.97,224.86,20.85432975]
[1734103673037,11.1128,224.97,224.87,20.85432975]
[1734103673331,11.1128,224.97,224.88,20.85432975]
[1734103673539,20.0,224.94,224.87,20.85432975]
[1734103673711,11.111,225.01,224.91,20.85432975]
[1734103674110,16.83408778,225.05,224.93,20.85432975]
[1734103674921,16.83408778,225.05,224.92,20.85432975]
[1734103675311,20.0,225.02,224.94,20.85432975]
[1734103675506,20.0,225.02,224.93,20.85432975]
[1734103676211,11.1088,225.05,224.95,20.85432975]
[1734103677616,20.0,225.02,224.95,20.85432975]
[1734103677812,20.0,225.02,224.93,20.85432975]
[1734103678223,7.5873,225.09,224.97,20.85432975]
[1734103678423,11.8589,225.15,225.0,20.85432975]
[1734103679532,11.8589,225.15,225.03,20.85432975]
[1734103680312,11.1037,225.15,225.02,20.85432975]
[1734103680515,11.1037,225.15,225.03,23.776884]
[1734103680744,11.1037,225.15,225.0,20.85432975]
[1734103680745,20.0,225.12,225.0,20.85432975]
[1734103681038,20.0,225.12,225.01,20.85432975]
[1734103681422,20.0,225.12,224.98,23.776884]
[1734103681423,20.0,225.09,224.98,23.776884]
[1734103681614,20.0,225.09,224.97,20.85432975]
[1734103682416,31.107,225.09,224.98,20.85432975]
[1734103682610,31.107,225.09,224.97,20.85432975]
[1734103682934,31.107,225.09,224.99,20.85432975]